[Event "*** SCC Grand Prix: Titled Tuesday Blitz"]
[Site "Chess.com"]
[Date "2020.09.29"]
[Round "4"]
[White "Pultis"]
[Black "BogdanDeac"]
[Result "1-0"]
[WhiteElo "2737"]
[BlackElo "2893"]
[TimeControl "180+1"]
[EndTime "10:38:49 PDT"]
[Termination "Pultis won on time"]

1. Nf3 {[%clk 0:03:00.9]} 1... d5 {[%clk 0:02:59.5]} 2. e3 {[%clk 0:02:57.8]}
2... g6 {[%clk 0:02:59.1]} 3. c4 {[%clk 0:02:56.4]} 3... e6 {[%clk 0:02:58.6]}
4. Nc3 {[%clk 0:02:54.6]} 4... Bg7 {[%clk 0:02:58.5]} 5. d4 {[%clk 0:02:53.7]}
5... Ne7 {[%clk 0:02:58.3]} 6. Be2 {[%clk 0:02:52.7]} 6... O-O {[%clk 0:02:58]}
7. O-O {[%clk 0:02:53.3]} 7... b6 {[%clk 0:02:56]} 8. b3 {[%clk 0:02:51.4]} 8...
dxc4 {[%clk 0:02:49.9]} 9. bxc4 {[%clk 0:02:50]} 9... c5 {[%clk 0:02:47.8]} 10.
Ba3 {[%clk 0:02:48.3]} 10... Bb7 {[%clk 0:02:23.9]} 11. Rc1 {[%clk 0:02:45.8]}
11... Nd7 {[%clk 0:02:23.6]} 12. Qb3 {[%clk 0:02:34.3]} 12... Nc6 {[%clk
0:01:54.8]} 13. Rfd1 {[%clk 0:02:20.5]} 13... Na5 {[%clk 0:01:23.2]} 14. Qb5
{[%clk 0:02:20.9]} 14... Qc8 {[%clk 0:01:04.6]} 15. d5 {[%clk 0:01:18.3]} 15...
exd5 {[%clk 0:00:44.7]} 16. Nxd5 {[%clk 0:01:15.7]} 16... Re8 {[%clk 0:00:41.2]}
17. Qb1 {[%clk 0:01:07]} 17... Nf6 {[%clk 0:00:29.2]} 18. Bb2 {[%clk 0:01:06.9]}
18... Bxd5 {[%clk 0:00:19.4]} 19. cxd5 {[%clk 0:01:06.6]} 19... Rd8 {[%clk
0:00:13]} 20. Qa1 {[%clk 0:01:05.1]} 20... Ne8 {[%clk 0:00:12.3]} 21. Bxg7
{[%clk 0:01:04.9]} 21... Nxg7 {[%clk 0:00:12.4]} 22. Ne5 {[%clk 0:01:05.8]}
22... h5 {[%clk 0:00:10.5]} 23. e4 {[%clk 0:00:53.7]} 23... Qc7 {[%clk
0:00:06.9]} 24. f4 {[%clk 0:00:50.6]} 24... Ne8 {[%clk 0:00:03.3]} 25. Bf3
{[%clk 0:00:47.8]} 25... Nd6 {[%clk 0:00:03.6]} 26. Qc3 {[%clk 0:00:40.7]} 26...
Re8 {[%clk 0:00:03.7]} 27. a4 {[%clk 0:00:34.4]} 27... Rad8 {[%clk 0:00:03.7]}
28. Re1 {[%clk 0:00:34.5]} 28... Qe7 {[%clk 0:00:03.4]} 29. Rcd1 {[%clk
0:00:34.2]} 29... Qc7 {[%clk 0:00:02.2]} 30. g3 {[%clk 0:00:30.2]} 30... c4
{[%clk 0:00:02.4]} 31. g4 {[%clk 0:00:27.1]} 31... Qc5+ {[%clk 0:00:02.6]} 32.
Kg2 {[%clk 0:00:27.7]} 32... h4 {[%clk 0:00:02.4]} 33. g5 {[%clk 0:00:28.1]}
33... Rxe5 {[%clk 0:00:01.3]} 34. fxe5 {[%clk 0:00:28]} 34... Ne8 {[%clk
0:00:01.5]} 35. e6 {[%clk 0:00:25.7]} 35... fxe6 {[%clk 0:00:01.4]} 36. Bg4
{[%clk 0:00:26.3]} 36... Ng7 {[%clk 0:00:01.4]} 37. Rf1 {[%clk 0:00:20.2]} 1-0

[Event "*** SCC Grand Prix: Titled Tuesday Blitz"]
[Site "Chess.com"]
[Date "2020.09.29"]
[Round "4"]
[White "jens1102"]
[Black "MarkoPe"]
[Result "1-0"]
[WhiteElo "2380"]
[BlackElo "2146"]
[TimeControl "180+1"]
[EndTime "10:38:49 PDT"]
[Termination "jens1102 won on time"]

1. c4 {[%clk 0:03:00.9]} 1... e5 {[%clk 0:02:57.6]} 2. Nc3 {[%clk 0:03:00.1]}
2... Nf6 {[%clk 0:02:57.4]} 3. Nf3 {[%clk 0:03:00.1]} 3... Nc6 {[%clk
0:02:57.1]} 4. g3 {[%clk 0:02:59.5]} 4... d5 {[%clk 0:02:56.7]} 5. cxd5 {[%clk
0:03:00.4]} 5... Nxd5 {[%clk 0:02:56.9]} 6. Bg2 {[%clk 0:03:01.2]} 6... Nb6
{[%clk 0:02:57.1]} 7. Rb1 {[%clk 0:03:01.5]} 7... Be7 {[%clk 0:02:56]} 8. b4
{[%clk 0:03:01.7]} 8... a6 {[%clk 0:02:50.7]} 9. a4 {[%clk 0:03:01.6]} 9... f6
{[%clk 0:02:41.7]} 10. b5 {[%clk 0:02:59.3]} 10... axb5 {[%clk 0:02:41.6]} 11.
axb5 {[%clk 0:03:00.2]} 11... Nd4 {[%clk 0:02:38.7]} 12. e3 {[%clk 0:03:00.1]}
12... Nxf3+ {[%clk 0:02:35.1]} 13. Qxf3 {[%clk 0:03:01]} 13... O-O {[%clk
0:02:33.5]} 14. O-O {[%clk 0:03:00.7]} 14... Ra7 {[%clk 0:02:28.1]} 15. d4
{[%clk 0:02:49.5]} 15... exd4 {[%clk 0:02:15]} 16. Rd1 {[%clk 0:02:48.2]} 16...
dxc3 {[%clk 0:02:07.6]} 17. Rxd8 {[%clk 0:02:45]} 17... Rxd8 {[%clk 0:02:07.7]}
18. Qe2 {[%clk 0:02:32]} 18... Be6 {[%clk 0:01:54.6]} 19. Qc2 {[%clk 0:02:03.9]}
19... Ra2 {[%clk 0:01:43.6]} 20. Qe4 {[%clk 0:01:26.4]} 20... Rd1+ {[%clk
0:01:31.1]} 21. Bf1 {[%clk 0:01:26.3]} 21... Bc4 {[%clk 0:00:46.7]} 22. Ba3
{[%clk 0:01:17.5]} 22... c2 {[%clk 0:00:10.5]} 23. Qxe7 {[%clk 0:01:10.2]} 23...
h6 {[%clk 0:00:10.7]} 24. Qe8+ {[%clk 0:01:01.4]} 24... Kh7 {[%clk 0:00:09.9]}
25. Qe4+ {[%clk 0:01:02.3]} 25... Kg8 {[%clk 0:00:05.3]} 26. Qxc2 {[%clk
0:00:57.2]} 26... Rxc2 {[%clk 0:00:04.1]} 27. Rxd1 {[%clk 0:00:55.4]} 27... Bxf1
{[%clk 0:00:02.2]} 28. Kxf1 {[%clk 0:00:55.8]} 28... Nc4 {[%clk 0:00:02.8]} 29.
Rd8+ {[%clk 0:00:52.4]} 29... Kf7 {[%clk 0:00:02.8]} 30. Bb4 {[%clk 0:00:41.6]}
30... Ke6 {[%clk 0:00:02.9]} 31. e4 {[%clk 0:00:35.8]} 31... Ne5 {[%clk
0:00:02.9]} 32. Re8+ {[%clk 0:00:34.4]} 32... Kf7 {[%clk 0:00:02.7]} 33. Re7+
{[%clk 0:00:34.7]} 33... Kg6 {[%clk 0:00:02.3]} 34. Be1 {[%clk 0:00:26.8]} 34...
Nd3 {[%clk 0:00:02.4]} 35. Rd7 {[%clk 0:00:24.7]} 35... Ne5 {[%clk 0:00:02.2]}
36. Rd5 {[%clk 0:00:23.7]} 36... Rc1 {[%clk 0:00:02.2]} 37. Ke2 {[%clk
0:00:22.9]} 37... Rc2+ {[%clk 0:00:01.8]} 38. Bd2 {[%clk 0:00:23.4]} 1-0

[Event "*** SCC Grand Prix: Titled Tuesday Blitz"]
[Site "Chess.com"]
[Date "2020.09.29"]
[Round "4"]
[White "LawrenceTrent"]
[Black "JonahWillow"]
[Result "0-1"]
[WhiteElo "2509"]
[BlackElo "2751"]
[TimeControl "180+1"]
[EndTime "10:38:51 PDT"]
[Termination "JonahWillow won by resignation"]

1. d4 {[%clk 0:03:00.6]} 1... Nf6 {[%clk 0:03:00]} 2. Nc3 {[%clk 0:02:59.5]}
2... d5 {[%clk 0:02:57.6]} 3. Bf4 {[%clk 0:02:59.6]} 3... e6 {[%clk 0:02:54.3]}
4. e3 {[%clk 0:02:59.5]} 4... Bd6 {[%clk 0:02:53.6]} 5. Qf3 {[%clk 0:02:56]}
5... O-O {[%clk 0:02:49.5]} 6. Bd3 {[%clk 0:02:49.9]} 6... c5 {[%clk 0:02:42]}
7. dxc5 {[%clk 0:02:50.1]} 7... Bxc5 {[%clk 0:02:36.5]} 8. O-O-O {[%clk
0:02:50.4]} 8... Nc6 {[%clk 0:02:33.7]} 9. Bg5 {[%clk 0:02:24.3]} 9... Be7
{[%clk 0:02:10.6]} 10. Nge2 {[%clk 0:02:12.5]} 10... Ne5 {[%clk 0:01:57.2]} 11.
Qf4 {[%clk 0:02:09.1]} 11... Nxd3+ {[%clk 0:01:54.6]} 12. Rxd3 {[%clk 0:02:10]}
12... Qa5 {[%clk 0:01:46.6]} 13. h4 {[%clk 0:01:52.9]} 13... b5 {[%clk
0:01:37.1]} 14. Nd4 {[%clk 0:01:48.7]} 14... Bd7 {[%clk 0:01:33]} 15. Nb3 {[%clk
0:01:17.8]} 15... Qb6 {[%clk 0:01:29.2]} 16. e4 {[%clk 0:01:17.9]} 16... h6
{[%clk 0:01:11.4]} 17. Bxf6 {[%clk 0:01:12.4]} 17... Bxf6 {[%clk 0:01:10.1]} 18.
exd5 {[%clk 0:01:13.3]} 18... Bxc3 {[%clk 0:01:08.2]} 19. Rxc3 {[%clk
0:01:13.2]} 19... exd5 {[%clk 0:01:07.8]} 20. Rd1 {[%clk 0:01:13.6]} 20... b4
{[%clk 0:01:05.1]} 21. Rcd3 {[%clk 0:01:13.1]} 21... Be6 {[%clk 0:01:05.8]} 22.
Qd4 {[%clk 0:01:10.5]} 22... Qd6 {[%clk 0:00:45.6]} 23. Rg3 {[%clk 0:01:06.1]}
23... g6 {[%clk 0:00:41.2]} 24. h5 {[%clk 0:01:04.3]} 24... g5 {[%clk
0:00:40.4]} 25. Re1 {[%clk 0:00:59.1]} 25... Kh7 {[%clk 0:00:36.7]} 26. Rge3
{[%clk 0:00:54.6]} 26... Rae8 {[%clk 0:00:33.3]} 27. Qxa7 {[%clk 0:00:53.8]}
27... Ra8 {[%clk 0:00:31]} 28. Qc5 {[%clk 0:00:53.7]} 28... Qf4 {[%clk 0:00:29]}
29. Kb1 {[%clk 0:00:46.2]} 29... Qxf2 {[%clk 0:00:23.3]} 30. g3 {[%clk
0:00:44.3]} 30... Rfc8 {[%clk 0:00:21.9]} 31. Qxb4 {[%clk 0:00:37.3]} 31...
Qxc2+ {[%clk 0:00:21.9]} 32. Ka1 {[%clk 0:00:37.8]} 32... Rcb8 {[%clk
0:00:16.7]} 33. Qc3 {[%clk 0:00:18.2]} 33... Rxa2+ {[%clk 0:00:13]} 34. Kxa2
{[%clk 0:00:16.4]} 34... Ra8+ {[%clk 0:00:13.9]} 35. Na5 {[%clk 0:00:15.4]}
35... d4+ {[%clk 0:00:14.3]} 36. Rxe6 {[%clk 0:00:12.3]} 36... dxc3 {[%clk
0:00:14.3]} 0-1

[Event "*** SCC Grand Prix: Titled Tuesday Blitz"]
[Site "Chess.com"]
[Date "2020.09.29"]
[Round "4"]
[White "RobertoJBM"]
[Black "AlexSuv"]
[Result "1-0"]
[WhiteElo "2718"]
[BlackElo "2506"]
[TimeControl "180+1"]
[EndTime "10:38:51 PDT"]
[Termination "RobertoJBM won by resignation"]

1. d4 {[%clk 0:03:00.9]} 1... Nf6 {[%clk 0:02:59.7]} 2. c4 {[%clk 0:02:58.3]}
2... e6 {[%clk 0:02:59.4]} 3. Nc3 {[%clk 0:02:57.1]} 3... Bb4 {[%clk 0:02:59]}
4. Qc2 {[%clk 0:02:56.5]} 4... O-O {[%clk 0:02:55.5]} 5. a3 {[%clk 0:02:55.3]}
5... Bxc3+ {[%clk 0:02:53.5]} 6. Qxc3 {[%clk 0:02:56.2]} 6... b6 {[%clk
0:02:50.4]} 7. Bg5 {[%clk 0:02:54]} 7... Bb7 {[%clk 0:02:47.4]} 8. e3 {[%clk
0:02:46.1]} 8... h6 {[%clk 0:02:46.1]} 9. Bh4 {[%clk 0:02:44.9]} 9... d6 {[%clk
0:02:36.8]} 10. Ne2 {[%clk 0:02:43.1]} 10... g5 {[%clk 0:02:32.3]} 11. Bg3
{[%clk 0:02:42.6]} 11... Ne4 {[%clk 0:02:32.3]} 12. Qc2 {[%clk 0:02:41.7]} 12...
f5 {[%clk 0:02:31.9]} 13. f3 {[%clk 0:02:41.5]} 13... Nxg3 {[%clk 0:02:25.6]}
14. hxg3 {[%clk 0:02:42.4]} 14... Kg7 {[%clk 0:02:25.3]} 15. Nc3 {[%clk
0:02:40.6]} 15... Nd7 {[%clk 0:02:24.4]} 16. O-O-O {[%clk 0:02:39.8]} 16... Qf6
{[%clk 0:02:19.3]} 17. Kb1 {[%clk 0:02:39.4]} 17... a6 {[%clk 0:02:11.2]} 18.
Bd3 {[%clk 0:02:36.7]} 18... e5 {[%clk 0:02:08.7]} 19. d5 {[%clk 0:02:20.7]}
19... Nc5 {[%clk 0:01:54.6]} 20. Be2 {[%clk 0:02:18]} 20... a5 {[%clk
0:01:50.8]} 21. b3 {[%clk 0:02:08.7]} 21... Bc8 {[%clk 0:01:43.4]} 22. Qb2
{[%clk 0:02:03.5]} 22... Bd7 {[%clk 0:01:39.3]} 23. f4 {[%clk 0:01:58.8]} 23...
exf4 {[%clk 0:01:36.7]} 24. exf4 {[%clk 0:01:57.7]} 24... g4 {[%clk 0:01:33.7]}
25. Rhe1 {[%clk 0:01:55.7]} 25... Rfe8 {[%clk 0:01:32.6]} 26. Bf1 {[%clk
0:01:54.6]} 26... a4 {[%clk 0:01:18.9]} 27. b4 {[%clk 0:01:50.6]} 27... Nb3
{[%clk 0:01:19.2]} 28. Na2 {[%clk 0:01:34.8]} 28... Qxb2+ {[%clk 0:00:42]} 29.
Kxb2 {[%clk 0:01:35.7]} 29... Kf6 {[%clk 0:00:42.5]} 30. Nc3 {[%clk 0:01:23.4]}
30... h5 {[%clk 0:00:28.1]} 31. Bd3 {[%clk 0:01:19]} 31... Re7 {[%clk
0:00:20.2]} 32. Rxe7 {[%clk 0:01:17.6]} 32... Kxe7 {[%clk 0:00:21.1]} 33. Re1+
{[%clk 0:01:16.8]} 33... Kf6 {[%clk 0:00:21.3]} 34. Bc2 {[%clk 0:01:17.7]} 34...
Rh8 {[%clk 0:00:18.4]} 35. Bxb3 {[%clk 0:01:16]} 35... axb3 {[%clk 0:00:19.3]}
36. Kxb3 {[%clk 0:01:04.4]} 36... h4 {[%clk 0:00:19.4]} 37. gxh4 {[%clk
0:01:04.6]} 37... Rxh4 {[%clk 0:00:20.3]} 38. g3 {[%clk 0:01:05.1]} 38... Rh3
{[%clk 0:00:19.9]} 39. Re3 {[%clk 0:01:05.4]} 39... Rh2 {[%clk 0:00:19.4]} 40.
a4 {[%clk 0:00:57.2]} 40... Rh8 {[%clk 0:00:17.6]} 41. Nb5 {[%clk 0:00:53.3]}
41... Bxb5 {[%clk 0:00:15.2]} 42. cxb5 {[%clk 0:00:53]} 42... Kf7 {[%clk
0:00:14.6]} 43. a5 {[%clk 0:00:52]} 43... Ra8 {[%clk 0:00:12.4]} 44. a6 {[%clk
0:00:49.4]} 44... Kf6 {[%clk 0:00:12.9]} 45. Kc4 {[%clk 0:00:48.3]} 45... Kf7
{[%clk 0:00:12.7]} 46. Kd4 {[%clk 0:00:48.5]} 46... Rd8 {[%clk 0:00:12.1]} 47.
Rc3 {[%clk 0:00:44.1]} 47... Rc8 {[%clk 0:00:11.5]} 48. a7 {[%clk 0:00:41.4]}
48... Kf6 {[%clk 0:00:11.6]} 49. Rxc7 {[%clk 0:00:40.5]} 49... Rxc7 {[%clk
0:00:11.2]} 50. a8=Q {[%clk 0:00:40.4]} 1-0

[Event "*** SCC Grand Prix: Titled Tuesday Blitz"]
[Site "Chess.com"]
[Date "2020.09.29"]
[Round "4"]
[White "AttilaTurzo"]
[Black "artichaud"]
[Result "0-1"]
[WhiteElo "2426"]
[BlackElo "2207"]
[TimeControl "180+1"]
[EndTime "10:38:51 PDT"]
[Termination "artichaud won by resignation"]

1. e4 {[%clk 0:03:00.9]} 1... d6 {[%clk 0:02:59.9]} 2. d4 {[%clk 0:03:00.3]}
2... Nf6 {[%clk 0:03:00.3]} 3. Nc3 {[%clk 0:02:56.4]} 3... c6 {[%clk 0:02:59.8]}
4. Be3 {[%clk 0:02:52.3]} 4... Nbd7 {[%clk 0:02:53.5]} 5. f3 {[%clk 0:02:50.6]}
5... e5 {[%clk 0:02:51.7]} 6. Nge2 {[%clk 0:02:48.6]} 6... b5 {[%clk 0:02:51.5]}
7. Qd2 {[%clk 0:02:46.6]} 7... Bb7 {[%clk 0:02:49.4]} 8. O-O-O {[%clk
0:02:39.8]} 8... h5 {[%clk 0:02:43.6]} 9. Kb1 {[%clk 0:02:16.9]} 9... b4 {[%clk
0:02:27.2]} 10. Na4 {[%clk 0:02:14]} 10... Qa5 {[%clk 0:02:26.9]} 11. b3 {[%clk
0:02:11.6]} 11... d5 {[%clk 0:02:15.6]} 12. dxe5 {[%clk 0:02:05.8]} 12... Nxe5
{[%clk 0:02:15.2]} 13. exd5 {[%clk 0:01:54.7]} 13... Nxd5 {[%clk 0:02:11.4]} 14.
Bd4 {[%clk 0:01:55.1]} 14... Bd6 {[%clk 0:02:04.9]} 15. Qg5 {[%clk 0:01:51.2]}
15... Ng6 {[%clk 0:01:22.2]} 16. Bxg7 {[%clk 0:01:46.4]} 16... Nc3+ {[%clk
0:01:20.3]} 17. Bxc3 {[%clk 0:01:31]} 17... Qxg5 {[%clk 0:01:21.2]} 18. Bxh8
{[%clk 0:01:31]} 18... O-O-O {[%clk 0:01:16.5]} 19. Bb2 {[%clk 0:01:21.5]} 19...
Be5 {[%clk 0:01:12.7]} 20. Rxd8+ {[%clk 0:00:59.6]} 20... Kxd8 {[%clk
0:01:13.6]} 21. Nc1 {[%clk 0:00:45.6]} 21... Qd2 {[%clk 0:01:07.8]} 22. Nc5
{[%clk 0:00:34.3]} 22... Bc8 {[%clk 0:01:02.4]} 23. Ne4 {[%clk 0:00:17.2]} 23...
Qe1 {[%clk 0:00:39.6]} 24. Bxe5 {[%clk 0:00:14.4]} 24... Nxe5 {[%clk 0:00:38.3]}
25. g3 {[%clk 0:00:15.3]} 25... Qe3 {[%clk 0:00:16.8]} 26. Bg2 {[%clk
0:00:15.2]} 26... Nxf3 {[%clk 0:00:15.1]} 27. Rd1+ {[%clk 0:00:15.3]} 27... Ke7
{[%clk 0:00:14.1]} 28. Nd2 {[%clk 0:00:14.6]} 28... Nxd2+ {[%clk 0:00:13.6]} 29.
Rxd2 {[%clk 0:00:13.3]} 29... Qxd2 {[%clk 0:00:13.5]} 30. Be4 {[%clk 0:00:13.9]}
30... Be6 {[%clk 0:00:13.2]} 31. Nd3 {[%clk 0:00:13.4]} 31... Qxh2 {[%clk
0:00:12.5]} 32. Kb2 {[%clk 0:00:13.7]} 32... a5 {[%clk 0:00:12.1]} 33. Bxc6
{[%clk 0:00:13.9]} 33... Qxg3 {[%clk 0:00:11.5]} 34. Be4 {[%clk 0:00:14.5]}
34... h4 {[%clk 0:00:11.3]} 35. Bc6 {[%clk 0:00:12]} 35... h3 {[%clk 0:00:11.1]}
36. Be4 {[%clk 0:00:09.9]} 0-1

[Event "*** SCC Grand Prix: Titled Tuesday Blitz"]
[Site "Chess.com"]
[Date "2020.09.29"]
[Round "4"]
[White "ZarinaShafigullina"]
[Black "Rogarcia1"]
[Result "1-0"]
[WhiteElo "2344"]
[BlackElo "2091"]
[TimeControl "180+1"]
[EndTime "10:38:51 PDT"]
[Termination "ZarinaShafigullina won on time"]

1. d4 {[%clk 0:03:00.9]} 1... d5 {[%clk 0:02:59.7]} 2. Nf3 {[%clk 0:03:01.8]}
2... Nf6 {[%clk 0:02:57.4]} 3. g3 {[%clk 0:03:01.5]} 3... c5 {[%clk 0:02:50.8]}
4. Bg2 {[%clk 0:03:01.5]} 4... cxd4 {[%clk 0:02:51]} 5. O-O {[%clk 0:03:01.6]}
5... h6 {[%clk 0:02:48.8]} 6. Nxd4 {[%clk 0:03:00]} 6... e5 {[%clk 0:02:48.8]}
7. Nf3 {[%clk 0:03:00]} 7... Nc6 {[%clk 0:02:47.9]} 8. c4 {[%clk 0:02:59.9]}
8... Be6 {[%clk 0:02:46.8]} 9. cxd5 {[%clk 0:02:59.1]} 9... Nxd5 {[%clk
0:02:43.9]} 10. Qa4 {[%clk 0:02:58.6]} 10... Qc7 {[%clk 0:02:30.2]} 11. Rd1
{[%clk 0:02:46.1]} 11... Rd8 {[%clk 0:02:21.4]} 12. e4 {[%clk 0:02:33.4]} 12...
Nb6 {[%clk 0:02:11.3]} 13. Rxd8+ {[%clk 0:02:32.4]} 13... Qxd8 {[%clk
0:02:11.4]} 14. Qc2 {[%clk 0:02:23.1]} 14... Nb4 {[%clk 0:01:16.4]} 15. Qd2
{[%clk 0:01:53.7]} 15... Qc7 {[%clk 0:00:51.7]} 16. Nc3 {[%clk 0:01:41.2]} 16...
Nc4 {[%clk 0:00:48.6]} 17. Qe2 {[%clk 0:01:40.2]} 17... Be7 {[%clk 0:00:45.4]}
18. b3 {[%clk 0:01:32.9]} 18... Nb6 {[%clk 0:00:35.8]} 19. Bb2 {[%clk
0:01:32.3]} 19... O-O {[%clk 0:00:33]} 20. Rc1 {[%clk 0:01:26]} 20... Qb8 {[%clk
0:00:32.4]} 21. a3 {[%clk 0:01:11.4]} 21... Nc6 {[%clk 0:00:32.1]} 22. Nd5
{[%clk 0:01:11]} 22... Nxd5 {[%clk 0:00:31.4]} 23. exd5 {[%clk 0:01:10.8]} 23...
Bxd5 {[%clk 0:00:27.1]} 24. Nxe5 {[%clk 0:01:10.4]} 24... Bxg2 {[%clk
0:00:16.1]} 25. Kxg2 {[%clk 0:01:09.1]} 25... Nxe5 {[%clk 0:00:14.8]} 26. Bxe5
{[%clk 0:01:08.7]} 26... Bd6 {[%clk 0:00:14.1]} 27. Bb2 {[%clk 0:01:08.4]} 27...
Re8 {[%clk 0:00:12.7]} 28. Qd3 {[%clk 0:01:03.3]} 28... Be5 {[%clk 0:00:13]} 29.
Bxe5 {[%clk 0:00:58.8]} 29... Qxe5 {[%clk 0:00:13.9]} 30. Rc4 {[%clk 0:00:55.6]}
30... Qe7 {[%clk 0:00:11.6]} 31. Qf3 {[%clk 0:00:53.3]} 31... b6 {[%clk
0:00:09.6]} 32. a4 {[%clk 0:00:52.7]} 32... Rd8 {[%clk 0:00:08.4]} 33. h4 {[%clk
0:00:44.5]} 33... Rd6 {[%clk 0:00:08.4]} 34. Rc8+ {[%clk 0:00:43.1]} 34... Kh7
{[%clk 0:00:08.6]} 35. Qf5+ {[%clk 0:00:37.6]} 35... g6 {[%clk 0:00:07.3]} 36.
Qf3 {[%clk 0:00:29.5]} 36... Rf6 {[%clk 0:00:02.5]} 37. Qd5 {[%clk 0:00:29.3]}
1-0

[Event "*** SCC Grand Prix: Titled Tuesday Blitz"]
[Site "Chess.com"]
[Date "2020.09.29"]
[Round "4"]
[White "AleksibFan"]
[Black "Shuvalov"]
[Result "0-1"]
[WhiteElo "2582"]
[BlackElo "2437"]
[TimeControl "180+1"]
[EndTime "10:38:52 PDT"]
[Termination "Shuvalov won on time"]

1. d4 {[%clk 0:03:00.9]} 1... Nf6 {[%clk 0:02:56.2]} 2. Bg5 {[%clk 0:03:00.6]}
2... d5 {[%clk 0:02:54.7]} 3. Bxf6 {[%clk 0:03:00.4]} 3... exf6 {[%clk
0:02:54.4]} 4. e3 {[%clk 0:03:01.3]} 4... Bf5 {[%clk 0:02:33.3]} 5. g3 {[%clk
0:03:00.6]} 5... c6 {[%clk 0:02:31.8]} 6. Bg2 {[%clk 0:03:00.3]} 6... Bd6 {[%clk
0:02:30.7]} 7. Ne2 {[%clk 0:03:00.1]} 7... O-O {[%clk 0:02:30.4]} 8. O-O {[%clk
0:03:00]} 8... Re8 {[%clk 0:02:30]} 9. b3 {[%clk 0:02:59.9]} 9... Nd7 {[%clk
0:02:23.9]} 10. c4 {[%clk 0:02:59.7]} 10... Be4 {[%clk 0:02:16.6]} 11. Nbc3
{[%clk 0:02:58.8]} 11... Bxg2 {[%clk 0:02:15.9]} 12. Kxg2 {[%clk 0:02:59.7]}
12... dxc4 {[%clk 0:02:07.3]} 13. bxc4 {[%clk 0:03:00.6]} 13... f5 {[%clk
0:02:00.7]} 14. Rb1 {[%clk 0:02:58.7]} 14... Rb8 {[%clk 0:01:58.9]} 15. Qd3
{[%clk 0:02:55.8]} 15... g6 {[%clk 0:01:57.8]} 16. Rb3 {[%clk 0:02:49.3]} 16...
Bf8 {[%clk 0:01:45.4]} 17. Qc2 {[%clk 0:02:40.9]} 17... Nb6 {[%clk 0:01:40.2]}
18. c5 {[%clk 0:02:37.1]} 18... Nd5 {[%clk 0:01:38.5]} 19. Rfb1 {[%clk
0:02:33.9]} 19... Re7 {[%clk 0:01:36.4]} 20. Qd3 {[%clk 0:02:29.3]} 20... h5
{[%clk 0:01:26]} 21. Qc4 {[%clk 0:02:27.3]} 21... Nf6 {[%clk 0:01:23.8]} 22. h4
{[%clk 0:02:23.4]} 22... Ng4 {[%clk 0:01:22.5]} 23. Qd3 {[%clk 0:02:03.3]} 23...
Bh6 {[%clk 0:01:20.5]} 24. Nd1 {[%clk 0:02:00.3]} 24... Qd5+ {[%clk 0:01:14.5]}
25. Kg1 {[%clk 0:01:59.3]} 25... Qf3 {[%clk 0:00:51.4]} 26. d5 {[%clk
0:01:51.7]} 26... Nxf2 {[%clk 0:00:32.4]} 27. Nxf2 {[%clk 0:01:42.3]} 27... Rxe3
{[%clk 0:00:31.4]} 28. Qd1 {[%clk 0:01:30.6]} 28... Qxe2 {[%clk 0:00:27.4]} 29.
Qxe2 {[%clk 0:01:28.6]} 29... Rxe2 {[%clk 0:00:28.3]} 30. dxc6 {[%clk 0:01:24]}
30... Be3 {[%clk 0:00:24.5]} 31. Rxb7 {[%clk 0:00:54.2]} 31... Bxf2+ {[%clk
0:00:20.5]} 32. Kf1 {[%clk 0:00:49.4]} 32... Rbe8 {[%clk 0:00:21.4]} 33. c7
{[%clk 0:00:46.9]} 33... Bxg3 {[%clk 0:00:20.1]} 34. c8=Q {[%clk 0:00:40.3]}
34... Rf2+ {[%clk 0:00:18.7]} 0-1

[Event "*** SCC Grand Prix: Titled Tuesday Blitz"]
[Site "Chess.com"]
[Date "2020.09.29"]
[Round "4"]
[White "korkmaz16"]
[Black "Quiet_Desperation"]
[Result "0-1"]
[WhiteElo "2348"]
[BlackElo "2027"]
[TimeControl "180+1"]
[EndTime "10:38:52 PDT"]
[Termination "Quiet_Desperation won by resignation"]

1. e4 {[%clk 0:03:00.9]} 1... e6 {[%clk 0:02:59.5]} 2. d3 {[%clk 0:02:59.4]}
2... d5 {[%clk 0:02:43.5]} 3. Nd2 {[%clk 0:02:58.9]} 3... c5 {[%clk 0:02:21.7]}
4. Ngf3 {[%clk 0:02:58]} 4... Nc6 {[%clk 0:02:21.9]} 5. g3 {[%clk 0:02:57.8]}
5... Nge7 {[%clk 0:02:22.2]} 6. Bg2 {[%clk 0:02:57.3]} 6... g6 {[%clk
0:02:22.8]} 7. O-O {[%clk 0:02:56]} 7... Bg7 {[%clk 0:02:23.2]} 8. Re1 {[%clk
0:02:54.9]} 8... O-O {[%clk 0:02:23.4]} 9. c3 {[%clk 0:02:46]} 9... h6 {[%clk
0:02:21]} 10. h4 {[%clk 0:02:45.4]} 10... e5 {[%clk 0:02:12.9]} 11. exd5 {[%clk
0:02:34.7]} 11... Nxd5 {[%clk 0:02:12.7]} 12. Nc4 {[%clk 0:02:34.1]} 12... Re8
{[%clk 0:02:09.9]} 13. Bd2 {[%clk 0:02:27]} 13... Bg4 {[%clk 0:02:09.5]} 14. Qc1
{[%clk 0:02:24.6]} 14... Kh7 {[%clk 0:02:09.6]} 15. Ne3 {[%clk 0:02:05.1]} 15...
Nxe3 {[%clk 0:02:06.7]} 16. Rxe3 {[%clk 0:02:04.8]} 16... f5 {[%clk 0:02:06.9]}
17. Qc2 {[%clk 0:01:57.7]} 17... f4 {[%clk 0:01:28.3]} 18. Re2 {[%clk
0:01:42.2]} 18... Qf6 {[%clk 0:01:19.1]} 19. Rf1 {[%clk 0:01:36.2]} 19... Rad8
{[%clk 0:01:16.4]} 20. Bc1 {[%clk 0:01:31.9]} 20... Bf5 {[%clk 0:01:08.3]} 21.
Ne1 {[%clk 0:01:28.1]} 21... c4 {[%clk 0:01:05.2]} 22. Be4 {[%clk 0:01:27.7]}
22... cxd3 {[%clk 0:01:00.7]} 23. Nxd3 {[%clk 0:01:26.2]} 23... Bxe4 {[%clk
0:01:00.5]} 24. Rxe4 {[%clk 0:01:25.7]} 24... Qf5 {[%clk 0:00:57]} 25. Rfe1
{[%clk 0:01:22.7]} 25... Qh3 {[%clk 0:00:52.7]} 26. Bxf4 {[%clk 0:01:15.7]}
26... exf4 {[%clk 0:00:47.3]} 27. Rxe8 {[%clk 0:01:15.1]} 27... fxg3 {[%clk
0:00:47.4]} 28. fxg3 {[%clk 0:00:22.7]} 28... Qxg3+ {[%clk 0:00:46.8]} 29. Kf1
{[%clk 0:00:21.2]} 29... Rxd3 {[%clk 0:00:44.5]} 30. Qg2 {[%clk 0:00:19]} 30...
Rf3+ {[%clk 0:00:39.5]} 31. Kg1 {[%clk 0:00:18.9]} 31... Qf4 {[%clk 0:00:18.4]}
32. R8e4 {[%clk 0:00:18.1]} 32... Qf5 {[%clk 0:00:18.2]} 33. Rg4 {[%clk
0:00:17.9]} 33... Ne5 {[%clk 0:00:16.2]} 34. Rg3 {[%clk 0:00:17.2]} 34... Rf4
{[%clk 0:00:16.4]} 35. Qh3 {[%clk 0:00:10.5]} 35... Nf3+ {[%clk 0:00:14.1]} 36.
Kg2 {[%clk 0:00:10]} 36... Nxe1+ {[%clk 0:00:13.2]} 37. Kh1 {[%clk 0:00:10.6]}
37... Rf1+ {[%clk 0:00:12.1]} 38. Kh2 {[%clk 0:00:11.2]} 38... Qf2+ {[%clk
0:00:11.7]} 39. Rg2 {[%clk 0:00:11.7]} 39... Qxg2+ {[%clk 0:00:12]} 40. Qxg2
{[%clk 0:00:12]} 40... Nxg2 {[%clk 0:00:12.9]} 41. Kxg2 {[%clk 0:00:12.9]} 41...
Rb1 {[%clk 0:00:13.2]} 0-1